bitfinex-derivatives/quotes_BTCF0:USTF0_20240820
["timestamp","ask_amount","ask_price","bid_price","bid_amount"]
[1724192878506,0.3608,59467.0,59462.0,0.00015738]
[1724192878507,0.084076,59463.0,59462.0,0.05003374]
[1724192879303,0.084076,59463.0,59462.0,0.00015738]
[1724192879612,0.084076,59463.0,59462.0,0.00515738]
[1724192879813,0.082076,59463.0,59462.0,0.00515738]
[1724192880512,0.082076,59463.0,59462.0,0.01115738]
[1724192880907,0.09777678,59463.0,59462.0,0.01115738]
[1724192886911,0.09777678,59463.0,59462.0,0.0611206]
[1724192887108,0.09777678,59463.0,59462.0,0.06112021]
[1724192887303,0.09777678,59463.0,59462.0,0.0611205]
[1724192887707,0.09777678,59463.0,59462.0,0.01115738]
[1724192888012,0.19257678,59463.0,59462.0,0.01115738]
[1724192888917,0.27665278,59463.0,59462.0,0.00915738]
[1724192889102,0.27865278,59463.0,59462.0,0.00415738]
[1724192889503,0.27865278,59463.0,59462.0,0.00015738]
[1724192889810,0.19557678,59463.0,59462.0,0.00015738]
[1724192890108,0.10077678,59463.0,59462.0,0.00015738]
[1724192896710,0.10077678,59463.0,59462.0,0.0501205]
[1724192897218,0.10077678,59463.0,59462.0,0.00015738]
[1724192899309,0.10077678,59463.0,59462.0,0.0501205]
[1724192901213,0.10077678,59463.0,59462.0,0.00015738]
[1724192904117,0.21697678,59463.0,59462.0,0.00015738]
[1724192914735,0.30105278,59463.0,59462.0,0.00015738]
[1724192915645,1.03942078,59463.0,59457.0,0.05038792]
[1724192915943,0.477,59458.0,59457.0,0.0002522]
[1724192916645,1.16548257,59458.0,59457.0,0.0002522]
[1724192916841,1.16548257,59458.0,59457.0,0.0042522]
[1724192917242,1.33364857,59458.0,59457.0,0.0042522]
[1724192917444,1.33364857,59458.0,59444.0,0.05013572]
[1724192917445,0.084098,59448.0,59444.0,0.05013572]
[1724192917645,0.08425873,59447.0,59443.0,0.05013572]
[1724192917946,0.1162,59444.0,59443.0,0.05013572]
[1724192918344,0.1162,59444.0,59441.0,0.05013572]
[1724192918345,0.200303,59444.0,59441.0,0.05013572]
[1724192918541,0.200303,59444.0,59438.0,0.0670889]
[1724192918542,0.084105,59443.0,59438.0,0.05038792]
[1724192918738,0.1162,59439.0,59438.0,0.0002522]
[1724192919045,0.11635973,59439.0,59438.0,0.0002522]
[1724192920050,0.11735973,59439.0,59438.0,0.0142522]
[1724192920634,0.11235973,59439.0,59438.0,0.0142522]
[1724192921247,0.11235973,59439.0,59438.0,0.0192522]
[1724192921248,0.11335973,59439.0,59438.0,0.0192522]
[1724192924452,0.07127964,59439.0,59438.0,0.0860889]
[1724192925246,0.07127964,59439.0,59438.0,0.0192522]
[1724192925452,0.07127964,59439.0,59438.0,0.0860889]
[1724192926246,0.07127964,59439.0,59438.0,0.0192522]
[1724192928655,0.07127964,59439.0,59438.0,0.1033642]
[1724192928953,0.1182,59439.0,59438.0,0.1033642]
[1724192930544,0.20231,59439.0,59438.0,0.1033642]
[1724192930750,0.20231,59439.0,59438.0,0.15332816]
[1724192931251,0.20231,59439.0,59438.0,0.1033642]
[1724192931757,0.08611,59439.0,59438.0,0.1033642]
[1724192931948,0.20231,59439.0,59438.0,0.1033642]
[1724192932346,0.20231,59439.0,59427.0,0.08319374]
[1724192932347,0.92391,59439.0,59427.0,0.08319374]
[1724192932557,0.477,59428.0,59425.0,0.04998065]
[1724192932853,0.477,59428.0,59419.0,0.05018337]
[1724192932854,0.1162,59426.0,59419.0,0.05018337]
[1724192933048,0.1162,59420.0,59419.0,0.05018337]
[1724192933248,0.1162,59420.0,59419.0,0.00020272]
[1724192934550,0.084136,59421.0,59419.0,0.00020272]
[1724192934551,0.375136,59421.0,59419.0,0.00020272]
[1724192934752,0.084137,59420.0,59419.0,0.00020272]
[1724192935554,0.087137,59420.0,59419.0,0.00020272]
[1724192939162,0.10235532,59420.0,59419.0,0.00020272]
[1724192941367,0.003,59420.0,59419.0,0.08434172]
[1724192943851,0.003,59420.0,59419.0,0.00020272]
[1724192945261,0.087137,59420.0,59419.0,0.00020272]
[1724192950059,0.003,59420.0,59419.0,0.44514172]
[1724192951858,0.087137,59420.0,59419.0,0.44514172]
[1724192952168,0.087137,59420.0,59419.0,0.08434172]
[1724192952366,0.087137,59420.0,59419.0,0.00020272]
[1724192953154,0.087137,59420.0,59419.0,0.36100272]
[1724192953958,0.087137,59420.0,59419.0,0.00020272]
[1724192955067,0.087137,59420.0,59419.0,0.36100272]
[1724192956367,0.087137,59420.0,59419.0,0.49512237]
[1724192956767,0.087137,59420.0,59419.0,0.00020272]
[1724192958369,0.087137,59420.0,59419.0,0.05018337]
[1724192959375,0.087137,59420.0,59419.0,0.00020272]
[1724192959969,0.087137,59420.0,59419.0,0.05027752]
[1724192960474,0.087137,59420.0,59419.0,0.00020272]
[1724192961265,0.087137,59420.0,59419.0,0.06684358]
[1724192961471,0.087137,59420.0,59419.0,0.00020272]
[1724192962076,0.087137,59420.0,59419.0,0.36100272]
[1724192962479,0.087137,59420.0,59419.0,0.48922293]
[1724192966786,0.087137,59420.0,59419.0,0.12842293]
[1724192966987,0.135337,59420.0,59419.0,0.21210331]
[1724192967474,0.135337,59420.0,59419.0,0.0838831]
[1724192968571,0.203537,59420.0,59419.0,0.48922832]
[1724192969370,0.16144248,59420.0,59419.0,0.48922832]
[1724192969581,0.16144248,59420.0,59419.0,0.44467629]
[1724192970391,0.13160293,59422.0,59419.0,0.56107629]
[1724192970579,0.084126,59428.0,59420.0,0.0494]
[1724192970779,0.084127,59427.0,59424.0,0.444932]
[1724192970980,0.11665243,59425.0,59424.0,0.444932]
[1724192971189,0.11665243,59425.0,59424.0,0.65681323]
[1724192971379,0.11665243,59425.0,59424.0,0.52860557]
[1724192972382,0.12265243,59425.0,59424.0,0.444932]
[1724192973891,0.13065243,59425.0,59424.0,0.444932]
[1724192976488,0.13065243,59425.0,59424.0,0.65681323]
[1724192977084,0.13065243,59425.0,59424.0,0.57313966]
[1724192977285,0.13065243,59425.0,59424.0,0.52850566]
[1724192977991,0.13065243,59425.0,59424.0,0.65671326]
[1724192978783,0.01065243,59425.0,59424.0,0.65671326]
[1724192979384,0.01065243,59425.0,59424.0,0.52850566]
[1724192980082,0.12705243,59425.0,59424.0,0.52850566]
[1724192980482,0.01065243,59425.0,59424.0,0.52850566]
[1724192980682,0.09932457,59426.0,59424.0,1.0774187]
[1724192980683,0.084129,59426.0,59424.0,1.0774187]
[1724192980882,0.084129,59426.0,59425.0,0.16768002]
[1724192981992,0.097129,59426.0,59425.0,0.16768002]
[1724192982588,0.013,59426.0,59425.0,0.16768002]
[1724192982789,0.08437643,59430.0,59429.0,0.084124]
[1724192982990,0.08437643,59430.0,59429.0,0.64484559]
[1724192983220,0.08437643,59430.0,59429.0,1.19431818]
[1724192984183,0.0987,59441.0,59429.0,0.62054836]
[1724192984383,0.621794,59451.0,59440.0,0.18318105]
[1724192984384,0.1164,59444.0,59440.0,0.18318105]
[1724192984583,0.084103,59444.0,59443.0,0.05005968]
[1724192984888,0.200503,59444.0,59443.0,0.05005857]
[1724192985286,0.084105,59443.0,59442.0,0.41085857]
[1724192985797,0.083105,59443.0,59442.0,0.41085857]
[1724192986394,0.083105,59443.0,59442.0,0.3608]
[1724192987091,0.083105,59443.0,59442.0,0.41085857]
[1724192987402,0.097105,59443.0,59442.0,0.3618]
[1724192987787,0.096105,59443.0,59442.0,0.3608]
[1724192987989,0.096105,59443.0,59442.0,0.3618]
[1724192990595,0.082105,59443.0,59442.0,0.3608]
[1724192990892,0.107105,59443.0,59442.0,0.3628]
[1724192996096,0.19121,59443.0,59442.0,0.002]
[1724192996297,0.16822,59439.0,59438.0,0.00025243]
[1724192996597,0.4772,59439.0,59428.0,0.3608]
[1724192996800,0.1164,59429.0,59428.0,0.3608]
[1724192997003,0.084123,59430.0,59428.0,0.3608]
[1724192997396,0.084123,59430.0,59429.0,0.1164]
[1724192997698,0.083123,59430.0,59429.0,0.1164]
[1724192998090,0.085123,59430.0,59429.0,0.1164]
[1724192998597,0.082123,59430.0,59429.0,0.1164]
[1724192998791,0.092123,59430.0,59429.0,0.1174]
[1724192999395,0.103123,59430.0,59429.0,0.1184]
[1724193000191,0.103123,59430.0,59429.0,0.4792]
[1724193000395,0.103123,59430.0,59429.0,0.563324]
[1724193002307,0.103123,59430.0,59429.0,0.63003573]
[1724193003114,0.11796943,59430.0,59429.0,0.63003573]
[1724193005617,0.11796943,59430.0,59429.0,0.51363573]
[1724193005812,0.23436943,59430.0,59429.0,0.002]
[1724193006017,0.59516943,59430.0,59429.0,0.002]
[1724193009026,0.47876943,59430.0,59429.0,0.002]
[1724193009228,0.59516943,59430.0,59429.0,0.002]
[1724193009721,1.09996943,59430.0,59429.0,0.002]
[1724193009923,1.49996943,59430.0,59429.0,0.002]
[1724193010225,1.58409243,59430.0,59429.0,0.002]
[1724193011121,1.49996943,59430.0,59429.0,0.002]
[1724193011326,0.23436943,59430.0,59429.0,0.002]
[1724193012815,0.73916943,59430.0,59429.0,0.002]
[1724193013022,1.09996943,59430.0,59429.0,0.002]
[1724193013720,1.09996943,59430.0,59424.0,0.00025243]
[1724193013721,1.42636625,59430.0,59424.0,0.00025243]
[1724193013920,0.4772,59425.0,59424.0,0.00025243]
[1724193014121,0.084137,59420.0,59419.0,0.05026385]
[1724193014422,0.200537,59420.0,59419.0,0.00020272]
[1724193014831,0.199537,59420.0,59419.0,0.00020272]
[1724193016026,0.226332,59424.0,59419.0,0.00020272]
[1724193016329,0.1164,59421.0,59420.0,0.05006113]
[1724193016631,0.084134,59423.0,59420.0,0.05006113]
[1724193017732,0.003,59421.0,59420.0,0.05006113]
[1724193017923,0.003,59421.0,59419.0,0.08434172]
[1724193017924,0.003,59421.0,59419.0,0.13440285]
[1724193018125,0.084137,59420.0,59419.0,0.05026385]
[1724193018523,0.194137,59420.0,59419.0,0.05026385]
[1724193019535,0.278274,59420.0,59419.0,0.05026385]
[1724193019728,0.084143,59416.0,59415.0,0.05002638]
[1724193020025,0.084143,59416.0,59414.0,0.05027881]
[1724193020424,0.084144,59415.0,59414.0,0.05027952]
[1724193020621,0.08427226,59415.0,59414.0,0.00025243]
[1724193021021,0.08027226,59415.0,59414.0,0.00025243]
[1724193021223,0.08027226,59415.0,59414.0,0.00425243]
[1724193021723,0.08027226,59415.0,59414.0,0.00025243]
[1724193021928,0.08027226,59415.0,59414.0,0.00425243]
[1724193022128,0.08027226,59415.0,59414.0,0.36505243]
[1724193022319,0.08027226,59415.0,59414.0,0.37005243]
[1724193022526,0.09528537,59415.0,59414.0,0.37005243]
[1724193023328,0.09528537,59415.0,59414.0,0.42007952]
[1724193024330,0.09528537,59415.0,59414.0,0.37005243]
[1724193025137,0.00012826,59415.0,59414.0,0.45419843]
[1724193026739,0.08427226,59415.0,59414.0,0.37005243]
[1724193032239,0.08427226,59415.0,59414.0,0.00925243]
[1724193037138,0.52921626,59415.0,59414.0,0.00925243]
[1724193037338,0.52921626,59415.0,59414.0,0.05937174]
[1724193037634,0.52921626,59415.0,59414.0,0.00925243]
[1724193038544,0.56147226,59415.0,59414.0,0.00925243]
[1724193038943,0.56147226,59415.0,59414.0,0.05937174]
[1724193040252,0.44507226,59415.0,59414.0,0.05937174]
[1724193040437,0.44507226,59415.0,59414.0,0.00925243]
[1724193040641,0.56147226,59415.0,59414.0,0.00925243]
[1724193040835,0.44507226,59415.0,59414.0,0.00925243]
[1724193045051,0.56147226,59415.0,59414.0,0.00925243]
[1724193046144,0.20067226,59415.0,59414.0,0.00925243]
[1724193050855,0.64561626,59415.0,59414.0,0.00925243]
[1724193051962,0.64761626,59415.0,59414.0,0.00425243]
[1724193052568,1.15253626,59415.0,59414.0,0.00425243]
[1724193052858,0.084147,59413.0,59411.0,0.0501321]
[1724193053066,0.1627,59412.0,59411.0,0.0501321]
[1724193053259,0.66766,59412.0,59411.0,0.0501321]
[1724193053460,1.06766,59412.0,59411.0,0.0501321]
[1724193054357,0.66766,59412.0,59410.0,0.0501321]
[1724193054563,0.1154,59411.0,59410.0,0.0501321]
[1724193054864,0.11553273,59411.0,59410.0,0.0501321]
[1724193055368,0.00013273,59411.0,59407.0,0.06673852]
[1724193055567,0.4772,59408.0,59407.0,0.06673852]
[1724193056068,0.4752,59408.0,59407.0,0.06673852]
[1724193056260,0.559354,59408.0,59407.0,0.06673852]
[1724193056859,0.558354,59408.0,59407.0,0.06673852]
[1724193057570,0.558354,59408.0,59406.0,0.06699095]
[1724193057760,0.559354,59408.0,59407.0,0.008]
[1724193058571,0.559354,59408.0,59407.0,0.005]
[1724193058775,0.559354,59408.0,59407.0,0.07178805]
[1724193058977,0.559354,59408.0,59407.0,0.005]
[1724193059776,0.559354,59408.0,59407.0,0.07178552]
[1724193060367,0.559354,59408.0,59407.0,0.008]
[1724193061275,0.559354,59408.0,59407.0,0.07478506]
[1724193061777,0.57601742,59408.0,59407.0,0.07478506]
[1724193062075,0.57601742,59408.0,59407.0,0.07478485]
[1724193062471,0.57601742,59408.0,59407.0,0.008]
[1724193062472,0.66017142,59408.0,59407.0,0.008]
[1724193062671,0.168312,59407.0,59406.0,0.00025243]
[1724193062880,0.084157,59406.0,59401.0,0.05011176]
[1724193063180,0.084157,59406.0,59395.0,0.084172]
[1724193063181,0.084165,59400.0,59399.0,0.05011176]
[1724193063379,0.20076772,59400.0,59399.0,0.05011176]
[1724193063566,0.08417,59397.0,59396.0,0.06679538]
[1724193063770,0.20057,59397.0,59396.0,0.06679538]
[1724193063972,0.19957,59397.0,59396.0,0.06679538]
[1724193064579,0.19957,59397.0,59395.0,0.06679538]
[1724193064779,0.1164,59396.0,59395.0,0.06679538]
[1724193065475,0.1164,59396.0,59394.0,0.06679538]
[1724193065476,0.1154,59396.0,59394.0,0.06679538]
[1724193065676,0.08317,59397.0,59395.0,0.1164]
[1724193065882,0.08317,59397.0,59396.0,0.06679538]
[1724193066080,0.08317,59397.0,59395.0,0.200572]
[1724193066674,0.00020272,59400.0,59396.0,0.3608]
[1724193066874,0.11660272,59400.0,59399.0,0.06674705]
[1724193067073,0.11660272,59400.0,59398.0,0.1164]
[1724193067074,0.13342819,59400.0,59398.0,0.1164]
[1724193067382,0.13342819,59400.0,59396.0,0.6226]
[1724193067583,0.13342819,59400.0,59396.0,0.6212]
[1724193068173,0.00020272,59400.0,59399.0,0.200567]
[1724193068373,0.00025243,59402.0,59401.0,0.084164]
[1724193068578,0.00025243,59402.0,59401.0,0.41229241]
[1724193068777,0.084154,59408.0,59405.0,0.084157]
[1724193068986,0.084154,59408.0,59407.0,0.3608]
[1724193069679,0.1164,59410.0,59407.0,0.3608]
[1724193069879,0.13263375,59410.0,59409.0,0.05004308]
[1724193070278,0.21678575,59410.0,59408.0,0.0465]
[1724193070586,0.10038575,59410.0,59408.0,0.0465]
[1724193070776,0.11038575,59410.0,59407.0,0.42892196]
[1724193071171,0.12438575,59410.0,59407.0,0.42892196]
[1724193071578,0.12538575,59410.0,59407.0,0.42752196]
[1724193072680,0.12338575,59410.0,59407.0,0.42752196]
[1724193073183,0.11038575,59410.0,59407.0,0.42752196]
[1724193073482,0.12138575,59410.0,59407.0,0.42752196]
[1724193073682,0.12138575,59410.0,59408.0,0.06672196]
[1724193074887,0.03823375,59410.0,59407.0,0.78832196]
[1724193075188,0.03823375,59410.0,59409.0,0.084153]
[1724193075189,0.022,59410.0,59409.0,0.084153]
[1724193076892,0.01,59410.0,59409.0,0.084153]
[1724193077190,0.025,59410.0,59409.0,0.084153]
[1724193077689,0.025,59410.0,59407.0,0.72316]
[1724193077887,0.025,59410.0,59407.0,0.7216]
[1724193078589,0.084154,59408.0,59407.0,0.7216]
[1724193078784,0.084154,59408.0,59407.0,0.3608]
[1724193079184,0.084154,59408.0,59407.0,0.42755286]
[1724193080191,0.084154,59408.0,59407.0,0.3608]
[1724193080990,0.105154,59408.0,59407.0,0.3608]
[1724193081488,0.105154,59408.0,59407.0,0.42757073]
[1724193081691,0.105154,59408.0,59407.0,0.3608]
[1724193082897,0.105154,59408.0,59407.0,0.42757073]
[1724193083489,0.105154,59408.0,59407.0,0.06677073]
[1724193083691,0.5398028,59413.0,59406.0,0.06677073]
[1724193083888,0.5398028,59413.0,59410.0,0.05008411]
[1724193084293,0.08415,59411.0,59410.0,0.05008411]
[1724193085603,0.09815,59411.0,59410.0,0.05008411]
[1724193085991,0.014,59411.0,59409.0,0.05008411]
[1724193086197,0.084151,59410.0,59409.0,0.05008411]
[1724193086425,0.083151,59410.0,59409.0,0.05008411]
[1724193086916,0.084154,59409.0,59406.0,0.06677073]
[1724193087099,0.083154,59409.0,59406.0,0.06677073]
[1724193087390,0.3608,59408.0,59405.0,0.06677073]
[1724193087891,0.443954,59408.0,59404.0,0.15118216]
[1724193088095,0.443954,59408.0,59407.0,0.05010183]
[1724193088896,0.443954,59408.0,59406.0,0.05110183]
[1724193089307,0.442954,59408.0,59407.0,0.05010183]
[1724193089997,0.450954,59408.0,59407.0,0.05010183]
[1724193090302,0.450954,59408.0,59406.0,0.002]
[1724193090303,0.168312,59407.0,59406.0,0.001]
[1724193090504,0.789712,59407.0,59406.0,0.001]
[1724193090698,0.083157,59406.0,59405.0,0.001]
[1724193090904,0.132157,59406.0,59405.0,0.001]
[1724193091104,0.083158,59405.0,59404.0,0.00025243]
[1724193092309,0.197558,59405.0,59404.0,0.00025243]
[1724193093206,0.203558,59405.0,59404.0,0.00125243]
[1724193093804,0.210558,59405.0,59404.0,0.00225243]
[1724193097102,0.22691892,59405.0,59404.0,0.00225243]
[1724193103904,0.02936092,59405.0,59404.0,0.08641243]
[1724193104305,0.02936092,59405.0,59404.0,0.20188316]
[1724193105509,0.02936092,59405.0,59404.0,0.13511243]
[1724193106512,0.02936092,59405.0,59404.0,0.08641243]
[1724193106702,0.02936092,59405.0,59404.0,0.00225243]
[1724193106909,0.11351892,59405.0,59404.0,0.00225243]
[1724193109519,0.47431892,59405.0,59404.0,0.00225243]
[1724193110416,0.76541892,59405.0,59404.0,0.00225243]
[1724193111519,0.084165,59400.0,59399.0,0.05018967]
[1724193111714,0.444965,59400.0,59399.0,0.05018967]
[1724193113509,0.445965,59400.0,59399.0,0.05018967]
[1724193114617,0.08417,59398.0,59396.0,0.06689077]
[1724193115021,0.08417,59397.0,59396.0,0.06689077]
[1724193116221,0.08417,59397.0,59396.0,0.06889077]
[1724193116415,0.08417,59397.0,59396.0,0.002]
[1724193116610,0.08417,59397.0,59396.0,0.004]
[1724193120521,0.01580331,59397.0,59396.0,0.088171]
[1724193120721,0.444965,59401.0,59397.0,0.084169]
[1724193120924,0.444965,59401.0,59399.0,0.066949]
[1724193121523,0.084165,59400.0,59399.0,0.066949]
[1724193123824,0.085165,59400.0,59399.0,0.066949]
[1724193125232,0.001,59400.0,59398.0,0.114649]
[1724193125524,0.001,59400.0,59399.0,0.084167]
[1724193126625,0.08441343,59403.0,59399.0,0.084167]
[1724193126626,0.00025243,59403.0,59402.0,0.084163]
[1724193126832,0.00025243,59403.0,59402.0,0.444963]
[1724193127029,0.00025243,59403.0,59402.0,0.52861897]
[1724193127631,0.00025243,59403.0,59402.0,0.444963]
[1724193128137,0.00025243,59403.0,59402.0,0.52861897]
[1724193128138,0.00525243,59403.0,59402.0,0.52861897]
[1724193129229,0.00925243,59403.0,59402.0,0.444963]
[1724193129429,0.00925243,59403.0,59402.0,0.52861897]
[1724193130635,0.00925243,59403.0,59402.0,0.444963]
[1724193132034,0.00925243,59403.0,59402.0,0.084163]
[1724193132238,0.00925243,59403.0,59402.0,0.444963]
[1724193132537,0.12565243,59403.0,59402.0,0.444963]
[1724193134638,0.12565243,59403.0,59402.0,0.3608]
[1724193135337,0.20981343,59403.0,59402.0,0.3608]
[1724193141043,0.084163,59402.0,59401.0,0.06688433]
[1724193141346,0.084163,59402.0,59399.0,0.084167]
[1724193141638,0.1164,59400.0,59399.0,0.084167]
[1724193143031,0.084164,59401.0,59400.0,0.084165]
[1724193143236,0.11665243,59403.0,59402.0,0.084163]
[1724193143535,0.11665243,59403.0,59402.0,0.444963]
[1724193143741,0.00025243,59403.0,59402.0,0.444963]
[1724193144242,0.11665243,59403.0,59402.0,0.444963]
[1724193144436,0.12165243,59403.0,59402.0,0.444963]
[1724193145334,0.00925243,59403.0,59402.0,0.444963]
[1724193145535,0.00925243,59403.0,59402.0,0.65687378]
[1724193145839,0.00925243,59403.0,59402.0,0.57321781]
[1724193146064,0.00925243,59403.0,59402.0,0.65685535]
[1724193146558,0.00925243,59403.0,59402.0,0.57321781]
[1724193147037,0.00925243,59403.0,59402.0,0.6568625]
[1724193147232,0.12565243,59403.0,59402.0,0.65686177]
[1724193147538,0.12565243,59403.0,59402.0,0.29606217]
[1724193147739,0.12565243,59403.0,59402.0,0.16780666]
[1724193147941,0.12565243,59403.0,59401.0,0.08364366]
[1724193147942,0.20981343,59403.0,59401.0,0.08364366]
[1724193148238,0.084167,59399.0,59398.0,0.08364366]
[1724193148436,0.084168,59398.0,59397.0,0.444969]
[1724193148630,0.084168,59398.0,59397.0,0.57323451]
[1724193149035,0.084168,59398.0,59397.0,0.65691825]
[1724193149539,0.084168,59398.0,59397.0,0.57323451]
[1724193150846,0.200568,59398.0,59397.0,0.21343451]
[1724193151038,0.200568,59398.0,59397.0,0.087169]
[1724193152744,0.21646929,59398.0,59397.0,0.087169]
[1724193157335,0.21646929,59398.0,59397.0,0.003]
[1724193157543,0.30063729,59398.0,59397.0,0.06997645]
[1724193157849,0.30063729,59398.0,59397.0,0.003]
[1724193158350,0.30063729,59398.0,59397.0,0.05322799]
[1724193158756,0.30063729,59398.0,59397.0,0.003]
[1724193159449,0.30063729,59398.0,59397.0,0.0532201]
[1724193161143,1.20571729,59398.0,59397.0,0.0532201]
[1724193161850,1.20571729,59398.0,59397.0,0.003]
[1724193162847,0.084171,59396.0,59395.0,0.0502201]
[1724193164143,0.084171,59396.0,59395.0,0.0532201]
[1724193165054,0.084171,59396.0,59395.0,0.05320169]
[1724193165656,0.444971,59396.0,59395.0,0.05320169]
[1724193168250,0.444971,59396.0,59395.0,0.003]
[1724193172951,0.084178,59391.0,59390.0,0.0501957]
[1724193173153,0.084178,59391.0,59380.0,0.05021737]
[1724193173154,0.084192,59381.0,59380.0,0.05021737]
[1724193173359,0.084194,59380.0,59379.0,0.00012146]
[1724193173680,0.131694,59380.0,59379.0,0.00012146]
[1724193174051,0.130694,59380.0,59379.0,0.00012146]
[1724193175357,0.168402,59375.0,59374.0,0.00016843]
[1724193175659,0.644602,59375.0,59374.0,0.00016843]
[1724193175962,0.528202,59375.0,59374.0,0.00016843]
[1724193176258,0.64372346,59375.0,59374.0,0.00016843]
[1724193176851,0.66672346,59375.0,59374.0,0.00116843]
[1724193180254,0.30592346,59375.0,59374.0,0.00116843]
[1724193180456,0.66672346,59375.0,59374.0,0.00116843]
[1724193183662,0.55032346,59375.0,59374.0,0.00116843]
[1724193183862,0.66672346,59375.0,59374.0,0.00116843]
[1724193188452,0.55032346,59375.0,59374.0,0.00116843]
[1724193188659,0.58252246,59375.0,59374.0,0.00116843]
[1724193190859,0.46612246,59375.0,59374.0,0.00116843]
[1724193191060,0.58252246,59375.0,59374.0,0.00116843]
[1724193192261,0.66672346,59375.0,59374.0,0.00116843]
[1724193195051,0.58252246,59375.0,59374.0,0.00116843]
[1724193196568,0.66672346,59375.0,59374.0,0.00116843]
[1724193196759,0.58252246,59375.0,59374.0,0.00116843]
[1724193196959,0.66672346,59375.0,59374.0,0.00116843]
[1724193197367,0.666602,59375.0,59374.0,0.00116843]
[1724193199465,0.66672346,59375.0,59374.0,0.00116843]
[1724193200055,0.666602,59375.0,59374.0,0.00116843]
[1724193200459,0.582401,59375.0,59374.0,0.00116843]
[1724193200665,0.58252246,59375.0,59374.0,0.00116843]
[1724193200865,0.66672346,59375.0,59374.0,0.00116843]
[1724193201065,0.58252246,59375.0,59374.0,0.00116843]
[1724193202262,0.58252246,59375.0,59374.0,0.0513858]
[1724193202465,0.66672346,59375.0,59374.0,0.00116843]
[1724193202766,0.58252246,59375.0,59374.0,0.00116843]
[1724193204175,0.58252246,59375.0,59374.0,0.0513858]
[1724193205367,0.46612246,59375.0,59374.0,0.0513858]
[1724193205671,0.58252246,59375.0,59374.0,0.00116843]
[1724193205865,0.58252246,59375.0,59374.0,0.05151224]
[1724193206373,0.66672346,59375.0,59374.0,0.05151224]
[1724193208271,0.58252246,59375.0,59374.0,0.05151224]
[1724193209370,0.58252246,59375.0,59374.0,0.00116843]
[1724193210568,0.58252246,59375.0,59364.0,0.0497]
[1724193210569,0.00012146,59374.0,59368.0,0.06693968]
[1724193210767,0.084212,59367.0,59366.0,0.05036674]
[1724193210967,0.084212,59367.0,59363.0,0.06693968]
[1724193210968,0.084214,59366.0,59365.0,0.05036674]
[1724193211175,0.200614,59366.0,59365.0,0.05036674]
[1724193211367,0.1164,59366.0,59363.0,0.05036674]
[1724193211679,0.4772,59364.0,59363.0,0.05036674]
[1724193211873,0.47632146,59364.0,59363.0,0.05036674]
[1724193212374,0.56053746,59364.0,59363.0,0.05036674]
[1724193212568,0.56053746,59364.0,59363.0,0.05136674]
[1724193213177,0.56053746,59364.0,59363.0,0.05036674]
[1724193213370,1.76894075,59364.0,59363.0,0.001]
[1724193214178,0.87658075,59364.0,59363.0,0.001]
[1724193215170,0.79236475,59364.0,59363.0,0.001]
[1724193216675,1.29772475,59364.0,59363.0,0.001]
[1724193217281,1.29772475,59364.0,59353.0,0.0485]
[1724193217282,0.08423,59355.0,59353.0,0.0485]
[1724193217576,0.47732146,59354.0,59353.0,0.0485]
[1724193218471,0.56155246,59354.0,59353.0,0.0485]
[1724193218675,0.084232,59353.0,59349.0,0.05036674]
[1724193218880,0.1164,59351.0,59348.0,0.05036674]
[1724193219079,0.1164,59349.0,59348.0,0.05036674]
[1724193219682,0.1164,59349.0,59347.0,0.13460774]
[1724193220181,0.1164,59349.0,59348.0,0.001]
[1724193220977,0.12018171,59349.0,59347.0,0.13560774]
[1724193221170,0.08714217,59348.0,59347.0,0.05136674]
[1724193221376,0.44794217,59348.0,59347.0,0.001]
[1724193222569,0.44894217,59348.0,59341.0,0.05026698]
[1724193222770,0.1164,59342.0,59341.0,0.13451598]
[1724193222984,0.11918171,59342.0,59341.0,0.084249]
[1724193223179,0.00278171,59342.0,59341.0,1.106209]
[1724193223386,0.37192146,59348.0,59347.0,0.084241]
[1724193223581,0.49732146,59348.0,59347.0,0.084241]
[1724193223771,0.12952146,59348.0,59347.0,0.589721]
[1724193224171,0.13598977,59348.0,59347.0,0.685521]
[1724193224377,0.12052146,59348.0,59347.0,0.685521]
[1724193224985,0.12052146,59348.0,59347.0,0.735121]
[1724193225187,0.11652146,59348.0,59347.0,0.735121]
[1724193225879,0.12752146,59348.0,59347.0,0.735121]
[1724193226086,0.13652146,59348.0,59347.0,0.78534728]
[1724193226291,0.084225,59359.0,59347.0,0.78534728]
[1724193226292,0.1164,59357.0,59347.0,0.2618]
[1724193226490,0.084222,59360.0,59356.0,0.41099276]
[1724193226681,0.1164,59357.0,59356.0,0.3608]
[1724193226876,0.1164,59357.0,59355.0,0.05019105]
[1724193227193,0.200627,59357.0,59353.0,0.05019105]
[1724193227486,0.1164,59354.0,59353.0,0.05019105]
[1724193227675,0.1164,59354.0,59351.0,0.3608]
[1724193228184,0.1164,59354.0,59351.0,0.86624]
[1724193228986,0.1304,59354.0,59351.0,0.86724]
[1724193229185,0.1304,59354.0,59353.0,0.001]
[1724193229996,0.1304,59354.0,59353.0,0.05121017]
[1724193230686,0.1304,59354.0,59353.0,0.13544217]
[1724193231992,0.1304,59354.0,59353.0,0.13644217]
[1724193232188,0.1304,59354.0,59353.0,0.64188217]
[1724193232380,0.00025264,59361.0,59354.0,0.50544]
[1724193232587,0.00025264,59361.0,59357.0,0.1164]
[1724193232588,0.1164,59360.0,59357.0,0.1164]
[1724193232787,0.00025264,59361.0,59360.0,0.084222]
[1724193233396,0.00025264,59361.0,59360.0,0.132822]
[1724193233598,0.1164,59365.0,59364.0,0.084216]
[1724193233813,0.1164,59365.0,59364.0,0.49521156]
[1724193234093,0.1164,59365.0,59364.0,0.495213]
[1724193234694,0.01464542,59369.0,59364.0,0.4772]
[1724193234695,0.1164,59367.0,59364.0,0.4772]
[1724193234887,0.1164,59367.0,59365.0,0.05019763]
[1724193235396,0.1164,59367.0,59366.0,0.05019763]
[1724193235593,0.1164,59367.0,59366.0,0.084214]
[1724193235816,0.1164,59367.0,59366.0,0.13441163]
[1724193236591,0.1164,59367.0,59366.0,0.13541163]
[1724193236993,0.1164,59367.0,59366.0,0.13641163]
[1724193238890,0.1164,59367.0,59366.0,0.13541163]
[1724193239094,0.1214,59367.0,59366.0,0.13641163]
[1724193239588,0.1214,59367.0,59366.0,0.086214]
[1724193240799,0.005,59367.0,59366.0,0.202614]
[1724193240996,0.005,59367.0,59366.0,1.107934]